[Event "FIDE Zonal 2.5-W 2019"]
[Site "Montevideo"]
[Date "2019.04.17"]
[Round "7.5"]
[White "Reyes Jara, Paula"]
[Black "Nejanky, Maisa"]
[Result "1/2-1/2"]
[ECO "A56"]
[WhiteElo "1926"]
[BlackElo "2000"]
[Annotator "NA RC"]
[PlyCount "105"]
[EventDate "2019.04.13"]
[EventType "swiss"]
[EventCountry "URU"]
[SourceTitle "playchess.com"]
[Source "ChessBase"]
[SourceQuality "1"]
[TimeControl "40/5400+30:1800+30"]

{[%evp 9,105,8,45,32767,32767,32767,32767,32767,96,82,77,32767,90,32767,106,72,97,79,32767,88,79,32767,32767,46,32767,32767,32767,32767,32767,32767,32767,32767,32767,32767,32767,32767,32767,32767,32767,-36,-34,32767,-90,-196,-23,32767,-20,-26,-19,-87,-104,-127,-66,32767,32767,32767,32767,-13,32767,32767,32767,32767,32767,32767,32767,0,150,29,48,0,0,0,253,93,82,93,64,16,17,27,24,27,25,18,32767,32767,32767,32767,32767,0,0,0,32767,0,0,0,0,0]} 1. d4 {[%emt 0:03:19]} Nf6 {[%emt 0:00:00]} 2. c4 {[%emt 0:00:21]} c5 {[%emt 0:00:00]} 3. e3 {[%emt 0:00:24]} g6 {[%emt 0:01:07]} 4. Nf3 {[%emt 0:00:56]} Bg7 {[%emt 0:00:08]} 5. Nc3 {[%emt 0:00:39]} O-O {[%emt 0:00:43]} 6. Be2 {[%emt 0:00:19]} d6 {[%emt 0:03:22]} 7. O-O {[%emt 0:01:54]} Nc6 {[%emt 0:08:20]} 8. d5 {[%emt 0:03:12]} Nb4 {[%emt 0:00:45]} 9. a3 {[%emt 0:00:35] E61: King's Indian: Early deviations for White, including Smyslov System} Na6 {[%emt 0:00:07]} 10. e4 {[%emt 0:01:02]} Nc7 {[%emt 0:08:51]} 11. Rb1 {[%emt 0:03:36]} Nd7 $146 {[%emt 0:13:27]} ({Better is} 11... e6 $14) ({You set blue moves yourself with the critical opening position annotation.:} 11... a6 12. b4 cxb4 13. Rxb4 Nd7 14. Nd4 a5 15. Rb1 Na6 16. Be3 Nac5 {0-1 (46) Dergatschova Daus,A (2210)-Fuchs,A (2116) Germany 2000}) 12. Qc2 {[%emt 0:03:44]} a5 {[%emt 0:11:07]} 13. Bd2 {[%emt 0:07:31]} b6 {[%emt 0:10:16]} 14. h3 {[%emt 0:01:12]} Ba6 {[%emt 0:01:45]} 15. Nd1 {[%emt 0:05:49]} Ne8 {[%emt 0:13:21]} 16. Nh2 {[%emt 0:00:41]} Nef6 {[%emt 0:03:28]} 17. f4 {[%emt 0:02:50]} e6 {[%emt 0:02:54]} 18. Bc3 {[%emt 0:01:19]} exd5 {[%emt 0:01:49]} 19. exd5 {[%emt 0:00:52]} Qe7 {[%emt 0:04:17]} 20. Bd3 {[%emt 0:01:31]} Rae8 {[%emt 0:02:03]} 21. b4 {[%emt 0:03:45]} axb4 {[%emt 0:04:36]} 22. axb4 {[%emt 0:00:08]} cxb4 {[%emt 0:03:09]} 23. Bxb4 {[%emt 0:01:20]} Nc5 {[%emt 0:00:59]} 24. Bxc5 $1 {[%emt 0:03:56]} bxc5 {[%emt 0:00:10]} 25. Rb6 {[%emt 0:00:43]} Bc8 {[%emt 0:10:19]} 26. Nf3 {[%emt 0:00:15]} Nd7 $2 {[%emt 0:00:59]} ({Black should play} 26... Nh5 $19 27. f5 Qd8) 27. Rb1 {[%emt 0:01:57]} Qd8 {[%emt 0:00:31]} 28. Nf2 {[%emt 0:01:57]} Nf6 {[%emt 0:01:09]} 29. f5 {[%emt 0:03:37]} (29. g4 $11) 29... Re3 {[%emt 0:01:25]} 30. fxg6 {[%emt 0:11:40]} hxg6 {[%emt 0:00:06]} 31. Rbe1 {[%emt 0:02:13]} Rxe1 {[%emt 0:01:49]} 32. Rxe1 {[%emt 0:00:09]} Nh5 {[%emt 0:01:11]} 33. Qd2 {[%emt 0:02:02]} Qf6 {[%emt 0:00:34]} 34. Ne4 {[%emt 0:05:10]} Qd8 {[%emt 0:00:24]} 35. g4 {[%emt 0:00:53]} Nf6 {[%emt 0:00:17]} 36. Qf4 {[%emt 0:00:34]} Ne8 {[%emt 0:00:19]} 37. Qg5 {[%emt 0:05:57]} Qa5 {[%emt 0:00:56]} (37... Nf6 $11) 38. Qe7 {[%emt 0:01:26]} (38. Qh4 $16 Qa7 39. Kh1 (39. Nfg5 Bd4+ 40. Kh1 f6 $16)) 38... Qa3 {[%emt 0:00:15]} 39. Be2 {[%emt 0:04:23]} Ba6 {[%emt 0:00:42]} 40. Kg2 {[%emt 0:02:30]} ({Not} 40. Nxd6 $2 Bf6 $19) 40... Bc3 $2 {[%emt 0:00:32]} (40... Qb2 $11 {and Black is okay.} 41. Ned2 Bc3) 41. Rf1 {[%emt 0:32:56]} (41. Rb1 $18 Bb2 42. Nfg5 (42. Nxd6 Bf6 $17)) 41... Qb2 {[%emt 0:13:00]} 42. Nxc3 {[%emt 0:00:00]} Qxc3 {[%emt 0:00:06] [#]} 43. Ng5 {[%emt 0:00:00]} (43. Nh4 $1 $16 {[%cal Rh4g6]} Qg7 44. Bd3) 43... Bxc4 {[%emt 0:03:43]} 44. Bxc4 {[%emt 0:00:00]} Qxc4 {[%emt 0:00:16]} 45. Rxf7 {[%emt 0:00:00]} Qxd5+ {[%emt 0:00:36] Double Attack} 46. Kg3 {[%emt 0:00:00]} Qe5+ {[%emt 0:14:07]} 47. Qxe5 {[%emt 0:00:00]} dxe5 {[%emt 0:00:01]} 48. Rxf8+ {[%emt 0:00:00]} Kxf8 {[%emt 0:00:06]} 49. Ne6+ {[%emt 0:00:00]} Ke7 {[%emt 0:00:14]} 50. Nxc5 $11 {[%emt 0:00:00]} Nd6 {[%emt 0:00:31]} 51. Kf3 {[%emt 0:00:00]} Nf7 {[%emt 0:00:42]} 52. h4 {[%emt 0:00:00]} Kd6 {[%emt 0:00:45]} 53. Ne4+ {[%emt 0:00:00]} 1/2-1/2

[Event "FIDE Zonal 2.5-W 2019"]
[Site "Montevideo"]
[Date "2019.04.18"]
[Round "8.1"]
[White "Gomez Barrera, Javiera Belen"]
[Black "Zuriel, Marisa"]
[Result "0-1"]
[ECO "B94"]
[WhiteElo "2016"]
[BlackElo "2153"]
[Annotator "NA"]
[PlyCount "76"]
[EventDate "2019.04.13"]
[EventType "swiss"]
[EventCountry "URU"]
[SourceTitle "playchess.com"]
[Source "ChessBase"]
[SourceQuality "1"]
[TimeControl "40/5400+30:1800+30"]

1. e4 {[%emt 0:02:21]} c5 {[%emt 0:00:00]} 2. Nf3 {[%emt 0:00:18]} d6 {[%emt 0:00:00]} 3. d4 {[%emt 0:00:18]} cxd4 {[%emt 0:00:02]} 4. Nxd4 {[%emt 0:00:08]} Nf6 {[%emt 0:00:11]} 5. Nc3 {[%emt 0:00:06]} a6 {[%emt 0:00:04]} 6. Bg5 {[%emt 0:00:10]} Nbd7 {[%emt 0:00:21]} 7. Bc4 {[%emt 0:00:20]} Qb6 {[%emt 0:00:25] B94: Sicilian Najdorf: 6 Bg5 Nbd7} (7... h6 8. Bh4 g6 9. Qe2 Bg7 10. O-O-O O-O 11. Bb3 Qc7 12. Kb1 Rb8 13. f4 e5 14. fxe5 dxe5 15. Nf3 b5 16. g4 {1-0 (61) Nepomniachtchi,I (2751)-Korobov,A (2678) Poikovsky 2018}) 8. Qd2 {[%emt 0:17:28]} e6 {[%emt 0:03:48]} 9. O-O {[%emt 0:10:48]} Ne5 $146 {[%emt 0:08:03]} ({Predecessor:} 9... Be7 10. Bxe6 fxe6 11. Nxe6 Kf7 12. Nd5 Nxd5 13. exd5 Bxg5 14. Qxg5 Qxb2 15. c3 Qxc3 {½-½ (43) Azarov,S (2584)-Dragun,K (2595) Katowice 2016}) 10. Bb3 {[%emt 0:15:01]} Be7 {[%emt 0:00:16]} 11. a4 {[%emt 0:20:35]} h6 12. Be3 {[%emt 0:03:32]} Qc7 {[%emt 0:11:17]} 13. Qe2 {[%emt 0:05:06]} O-O {[%emt 0:12:17]} 14. h3 {[%emt 0:01:50]} Bd7 {[%emt 0:15:55]} 15. f4 {[%emt 0:08:09]} Nc6 {[%emt 0:02:25]} 16. f5 {[%emt 0:10:26]} e5 {[%emt 0:03:50]} 17. Nf3 {[%emt 0:02:58]} Nb4 {[%emt 0:00:21]} 18. Bf2 {[%emt 0:07:40]} Rac8 {[%emt 0:05:29]} 19. Bh4 {[%emt 0:02:36]} Bc6 {[%emt 0:03:54]} 20. Bxf6 {[%emt 0:01:11]} Bxf6 {[%emt 0:00:09]} 21. Qf2 {[%emt 0:01:29]} Qa5 {[%emt 0:01:48]} 22. Rfd1 {[%emt 0:00:20]} Rfd8 {[%emt 0:02:13]} 23. Bd5 {[%emt 0:00:46]} Bxd5 {[%emt 0:04:00]} 24. Rxd5 {[%emt 0:00:26]} Nxd5 {[%emt 0:00:36]} 25. Nxd5 {[%emt 0:00:02]} Rc4 {[%emt 0:13:43]} 26. Nxf6+ $2 {[%emt 0:00:51]} (26. Re1 {is a better defense.}) 26... gxf6 {[%emt 0:00:04]} 27. Qh4 {[%emt 0:00:07]} Kg7 {[%emt 0:00:09]} ({Less strong is} 27... Rxc2 28. Qxf6 Kf8 29. Qxh6+ Ke7 30. Qg7 $11 (30. Rd1 Qc7 $11)) 28. Nh2 {[%emt 0:01:02]} Qd2 {[%emt 0:01:04]} 29. Ra3 {[%emt 0:00:28]} Qd4+ {[%emt 0:01:47]} 30. Kf1 {[%emt 0:00:33]} Qd1+ {[%emt 0:00:06]} 31. Qe1 {[%emt 0:00:30]} Qxe1+ {[%emt 0:00:51]} 32. Kxe1 {[%emt 0:00:01]} Rxc2 {[%emt 0:00:21]} 33. Rg3+ {[%emt 0:00:21]} Kf8 {[%emt 0:00:08]} 34. Ng4 {[%emt 0:00:50]} d5 {[%emt 0:05:45]} 35. Nxf6 {[%emt 0:00:37]} dxe4 {[%emt 0:00:14]} 36. Nxe4 {[%emt 0:00:39]} Rd4 {[%emt 0:00:57]} 37. Nc3 {[%emt 0:00:29]} Rxb2 {[%emt 0:01:19]} 38. f6 {[%emt 0:00:25]} Rdd2 $19 {[%emt 0:00:43]} 0-1

[Event "FIDE Zonal 2.5-W 2019"]
[Site "Montevideo"]
[Date "2019.04.18"]
[Round "8.3"]
[White "Perez Rodriguez, Jennifer"]
[Black "Meza, Anahi"]
[Result "1/2-1/2"]
[ECO "B40"]
[WhiteElo "2237"]
[BlackElo "2073"]
[Annotator "ChessBase"]
[PlyCount "130"]
[EventDate "2019.04.13"]
[EventType "swiss"]
[EventCountry "URU"]
[SourceTitle "playchess.com"]
[Source "ChessBase"]
[SourceQuality "1"]
[TimeControl "40/5400+30:1800+30"]

1. e4 {[%emt 0:00:00]} c5 {[%emt 0:00:00]} 2. Nf3 {[%emt 0:00:00]} e6 {[%emt 0:00:00]} 3. c3 {[%emt 0:00:08]} Nf6 {[%emt 0:00:32]} 4. e5 {[%emt 0:00:11]} Nd5 {[%emt 0:00:05]} 5. d4 {[%emt 0:00:05]} cxd4 {[%emt 0:00:09]} 6. cxd4 {[%emt 0:00:02]} d6 {[%emt 0:00:14]} 7. a3 {[%emt 0:00:13]} Nc6 {[%emt 0:00:44]} 8. Bd3 {[%emt 0:01:17]} Be7 {[%emt 0:03:15]} 9. O-O {[%emt 0:00:06]} O-O {[%emt 0:02:29]} 10. Qe2 {[%emt 0:01:05]} dxe5 {[%emt 0:18:53]} 11. dxe5 {[%emt 0:00:31]} f6 {[%emt 0:01:25]} 12. Rd1 {[%emt 0:07:55]} Qc7 {[%emt 0:14:51]} 13. exf6 {[%emt 0:11:35]} Nxf6 {[%emt 0:01:21]} 14. Nc3 {[%emt 0:01:20]} a6 {[%emt 0:12:21]} 15. Bg5 {[%emt 0:04:11]} e5 {[%emt 0:11:52]} 16. h3 {[%emt 0:14:47]} Be6 {[%emt 0:03:53]} 17. Bc4 {[%emt 0:08:23]} Bxc4 {[%emt 0:06:02]} 18. Qxc4+ {[%emt 0:00:10]} Kh8 {[%emt 0:00:02]} 19. Bh4 {[%emt 0:05:58]} Rac8 {[%emt 0:11:42]} 20. Ng5 {[%emt 0:05:03]} Nd8 {[%emt 0:05:23]} 21. Qxc7 {[%emt 0:06:15]} Rxc7 {[%emt 0:00:01]} 22. Bg3 {[%emt 0:00:02]} Nh5 {[%emt 0:01:08]} 23. Nd5 {[%emt 0:15:53]} Rd7 {[%emt 0:01:51]} 24. Nxe7 {[%emt 0:00:50]} Rxe7 {[%emt 0:00:03]} 25. Bxe5 {[%emt 0:07:22]} Rxe5 {[%emt 0:00:17]} 26. Rxd8 {[%emt 0:00:02]} Kg8 {[%emt 0:02:01]} 27. Nf3 {[%emt 0:03:21]} Rxd8 {[%emt 0:00:39]} 28. Nxe5 {[%emt 0:00:01]} Rd2 {[%emt 0:00:30]} 29. Rc1 {[%emt 0:00:15]} h6 {[%emt 0:00:19]} 30. b4 {[%emt 0:01:34]} Nf4 {[%emt 0:00:59]} 31. Rc8+ {[%emt 0:00:45]} Kh7 {[%emt 0:00:02]} 32. Rc7 {[%emt 0:01:42]} b5 {[%emt 0:01:41]} 33. Rc6 {[%emt 0:00:39]} Rd1+ {[%emt 0:00:35]} 34. Kh2 {[%emt 0:00:01]} Rd2 {[%emt 0:01:01]} 35. Rxa6 {[%emt 0:01:31]} Rxf2 {[%emt 0:00:19]} 36. Kg3 {[%emt 0:00:01]} Rf1 {[%emt 0:00:07]} 37. Nf3 {[%emt 0:01:32]} Ne2+ {[%emt 0:00:59]} 38. Kh2 {[%emt 0:00:05]} Ra1 {[%emt 0:00:10]} 39. Ra5 {[%emt 0:01:48]} Ra2 {[%emt 0:01:04]} 40. Rxb5 {[%emt 0:00:27]} Nf4 {[%emt 0:00:09]} 41. Ne1 {[%emt 0:07:48]} Rxa3 {[%emt 0:06:15]} 42. Nc2 {[%emt 0:03:54]} Rd3 {[%emt 0:04:53]} 43. Rc5 {[%emt 0:04:13]} Rd2 {[%emt 0:02:40]} 44. Ne3 {[%emt 0:00:32]} Re2 {[%emt 0:06:02]} 45. Rc3 {[%emt 0:03:50]} Rb2 {[%emt 0:01:22]} 46. Nc2 {[%emt 0:03:42]} Nd5 {[%emt 0:05:46]} 47. Rc4 {[%emt 0:00:09]} Nb6 {[%emt 0:00:50]} 48. Rc5 {[%emt 0:00:30]} Nd7 {[%emt 0:00:26]} 49. Rc7 {[%emt 0:01:01]} Nf6 {[%emt 0:01:09]} 50. Kg3 {[%emt 0:02:45]} Rb3+ {[%emt 0:02:38]} 51. Kf2 {[%emt 0:00:40]} Nd5 {[%emt 0:00:19]} 52. Rc4 {[%emt 0:00:24]} Rb2 {[%emt 0:01:08]} 53. Kf3 {[%emt 0:00:46]} Nb6 {[%emt 0:00:37]} 54. Rc5 {[%emt 0:00:43]} Nd7 {[%emt 0:01:04]} 55. Rd5 {[%emt 0:05:06]} Nb6 {[%emt 0:00:35]} 56. Rb5 {[%emt 0:00:51]} Nc4 {[%emt 0:00:24]} 57. Nd4 {[%emt 0:00:34]} Rd2 {[%emt 0:00:51]} 58. Nc6 {[%emt 0:00:49]} Rd3+ {[%emt 0:00:35]} 59. Ke4 {[%emt 0:01:17]} Rd2 {[%emt 0:00:28]} 60. Rc5 {[%emt 0:00:14]} Nd6+ {[%emt 0:00:26]} 61. Kf3 {[%emt 0:00:51]} Rd3+ {[%emt 0:00:54]} 62. Ke2 {[%emt 0:00:03]} Rg3 {[%emt 0:00:26]} 63. Kf1 {[%emt 0:00:11]} Rb3 {[%emt 0:00:23]} 64. Rd5 {[%emt 0:00:43]} Ne4 {[%emt 0:00:19]} 65. Re5 {[%emt 0:01:22]} Nd2+ {[%emt 0:00:43]} 1/2-1/2

[Event "FIDE Zonal 2.5-W 2019"]
[Site "Montevideo"]
[Date "2019.04.18"]
[Round "8.7"]
[White "Podesta, Sofia"]
[Black "Sarquis, Maria Belen"]
[Result "0-1"]
[ECO "A46"]
[WhiteElo "1417"]
[BlackElo "2141"]
[Annotator "NA"]
[PlyCount "32"]
[EventDate "2019.04.13"]
[EventType "swiss"]
[EventCountry "URU"]
[SourceTitle "playchess.com"]
[Source "ChessBase"]
[SourceQuality "1"]
[TimeControl "40/5400+30:1800+30"]

1. d4 {[%emt 0:02:08]} Nf6 {[%emt 0:00:58]} 2. Nf3 {[%emt 0:00:08]} d6 {[%emt 0:00:06]} 3. Bg5 {[%emt 0:00:18]} Nbd7 {[%emt 0:00:13]} 4. e3 {[%emt 0:00:20]} e5 {[%emt 0:00:26]} 5. Nbd2 {[%emt 0:01:36]} Be7 {[%emt 0:00:34]} 6. Bd3 {[%emt 0:01:08]} c6 {[%emt 0:01:16]} 7. O-O {[%emt 0:00:10]} O-O {[%emt 0:00:18]} 8. Qe2 {[%emt 0:01:29]} Re8 {[%emt 0:01:12]} 9. Rfe1 {[%emt 0:00:31]} Qc7 {[%emt 0:00:35]} 10. c3 {[%emt 0:06:09]} h6 {[%emt 0:00:28]} 11. Bh4 {[%emt 0:00:12]} Bf8 {[%emt 0:00:10]} 12. dxe5 {[%emt 0:00:53]} dxe5 {[%emt 0:00:38]} 13. e4 {[%emt 0:03:37]} Nh5 {[%emt 0:02:22]} 14. Bg3 {[%emt 0:06:55]} Nxg3 {[%emt 0:02:45]} 15. fxg3 {[%emt 0:01:13]} Qb6+ {[%emt 0:03:45]} 16. Qf2 {[%emt 0:02:57]} Bc5 {[%emt 0:01:14]} 0-1

[Event "FIDE Zonal 2.5-W 2019"]
[Site "Montevideo"]
[Date "2019.04.19"]
[Round "9.1"]
[White "Zuriel, Marisa"]
[Black "Perez Rodriguez, Jennifer"]
[Result "0-1"]
[ECO "C50"]
[WhiteElo "2153"]
[BlackElo "2237"]
[Annotator "NA"]
[PlyCount "84"]
[EventDate "2019.04.13"]
[EventType "swiss"]
[EventCountry "URU"]
[SourceTitle "playchess.com"]
[Source "ChessBase"]
[SourceQuality "1"]
[TimeControl "40/5400+30:1800+30"]

1. e4 {[%emt 0:00:20]} e5 {[%emt 0:00:00]} 2. Nf3 {[%emt 0:00:13]} Nc6 {[%emt 0:00:00]} 3. Bc4 {[%emt 0:00:06]} Bc5 {[%emt 0:00:00]} 4. O-O {[%emt 0:00:40]} Nf6 {[%emt 0:00:21]} 5. d3 {[%emt 0:00:18]} d6 {[%emt 0:00:16]} 6. c3 {[%emt 0:00:19]} a5 {[%emt 0:00:10]} 7. Nbd2 {[%emt 0:00:47]} O-O {[%emt 0:00:19]} 8. h3 {[%emt 0:00:06]} h6 {[%emt 0:00:04]} 9. Re1 {[%emt 0:00:11]} Be6 {[%emt 0:00:27]} 10. Bb5 {[%emt 0:00:28]} Qb8 {[%emt 0:00:13]} 11. Nf1 {[%emt 0:23:26]} Qa7 {[%emt 0:01:30]} 12. Qe2 {[%emt 0:01:24]} a4 {[%emt 0:03:53]} 13. Bxc6 {[%emt 0:01:17]} bxc6 {[%emt 0:00:01]} 14. Ng3 {[%emt 0:00:13]} Rfe8 15. Nh4 {[%emt 0:02:09]} d5 {[%emt 0:09:22]} 16. Qf3 {[%emt 0:06:22]} Kh7 {[%emt 0:02:27]} 17. Nhf5 {[%emt 0:04:21]} Ng8 {[%emt 0:04:30]} 18. Be3 {[%emt 0:11:14]} d4 {[%emt 0:17:42]} 19. cxd4 {[%emt 0:01:14]} exd4 {[%emt 0:00:01]} 20. Bc1 {[%emt 0:09:24]} g6 {[%emt 0:06:37]} 21. Nh4 {[%emt 0:00:18]} Be7 {[%emt 0:01:15]} 22. Nhf5 {[%emt 0:14:46]} gxf5 {[%emt 0:00:49]} 23. Nxf5 {[%emt 0:00:06]} Qa5 {[%emt 0:03:46]} 24. Rd1 {[%emt 0:05:44]} Bxf5 {[%emt 0:01:18]} 25. exf5 {[%emt 0:00:04]} Qd5 {[%emt 0:00:33]} 26. Qh5 {[%emt 0:00:05]} Ra5 {[%emt 0:05:29]} 27. g4 {[%emt 0:00:05]} Bd6 {[%emt 0:04:18]} 28. Bd2 {[%emt 0:00:09]} Raa8 {[%emt 0:03:06]} 29. Re1 {[%emt 0:02:33]} Kg7 {[%emt 0:02:44]} 30. g5 {[%emt 0:06:55]} hxg5 {[%emt 0:01:37]} 31. Qxg5+ {[%emt 0:00:34]} Kf8 {[%emt 0:00:25]} 32. Qh5 {[%emt 0:00:19]} Be5 {[%emt 0:03:24]} 33. Rac1 {[%emt 0:01:12]} Rab8 {[%emt 0:04:38]} 34. a3 {[%emt 0:00:18]} c5 {[%emt 0:02:01]} 35. Re4 {[%emt 0:00:40]} Bg7 {[%emt 0:05:47]} 36. Rxe8+ {[%emt 0:00:51]} Kxe8 {[%emt 0:00:59]} 37. Qh7 {[%emt 0:00:12]} Kf8 {[%emt 0:00:18]} 38. Bf4 {[%emt 0:02:37]} Nf6 {[%emt 0:00:28]} 39. Qh4 {[%emt 0:00:03]} Qxf5 {[%emt 0:00:35]} 40. Bxc7 {[%emt 0:00:06]} Rc8 {[%emt 0:01:18]} 41. Bd6+ {[%emt 0:35:51]} Kg8 {[%emt 0:30:02]} 42. Rd1 {[%emt 0:00:00]} Qh5 {[%emt 0:00:00]} 0-1

[Event "FIDE Zonal 2.5-W 2019"]
[Site "Montevideo"]
[Date "2019.04.19"]
[Round "9.2"]
[White "Nejanky, Maisa"]
[Black "Vargas, Gabriela"]
[Result "1/2-1/2"]
[ECO "C10"]
[WhiteElo "2000"]
[BlackElo "2130"]
[Annotator "NA"]
[PlyCount "125"]
[EventDate "2019.04.13"]
[EventType "swiss"]
[EventCountry "URU"]
[SourceTitle "playchess.com"]
[Source "ChessBase"]
[SourceQuality "1"]
[TimeControl "40/5400+30:1800+30"]

1. e4 {[%emt 0:00:00]} e6 {[%emt 0:00:00]} 2. d4 {[%emt 0:00:00]} d5 {[%emt 0:00:02]} 3. Nc3 {[%emt 0:00:00]} h6 {[%emt 0:00:11]} 4. Nf3 {[%emt 0:05:25]} Nf6 {[%emt 0:00:38]} 5. Bd3 {[%emt 0:01:54]} Bb4 {[%emt 0:01:14]} 6. e5 {[%emt 0:12:09]} Ne4 {[%emt 0:06:13]} 7. Bd2 {[%emt 0:06:05]} Nxd2 {[%emt 0:10:24]} 8. Qxd2 {[%emt 0:00:15]} c5 9. a3 {[%emt 0:06:15]} Qa5 {[%emt 0:08:36]} 10. O-O {[%emt 0:00:33]} Bxc3 {[%emt 0:05:03]} 11. Qxc3 {[%emt 0:17:57]} Qxc3 {[%emt 0:01:04]} 12. bxc3 {[%emt 0:00:05]} c4 {[%emt 0:08:21]} 13. Be2 {[%emt 0:00:05]} b5 {[%emt 0:09:39]} 14. Nd2 {[%emt 0:09:35]} Bd7 {[%emt 0:04:25]} 15. f4 {[%emt 0:00:10]} Nc6 {[%emt 0:03:40]} 16. g4 {[%emt 0:10:22]} a5 {[%emt 0:05:56]} 17. Nf3 {[%emt 0:14:44]} Rb8 {[%emt 0:05:19]} 18. Kf2 {[%emt 0:00:30]} b4 {[%emt 0:08:19]} 19. axb4 {[%emt 0:01:23]} axb4 {[%emt 0:00:05]} 20. cxb4 {[%emt 0:00:19]} Rxb4 {[%emt 0:00:43]} 21. Ra8+ {[%emt 0:06:36]} Rb8 {[%emt 0:03:36]} 22. Rxb8+ {[%emt 0:00:27]} Nxb8 {[%emt 0:00:02]} 23. Ra1 {[%emt 0:01:19]} Kd8 {[%emt 0:03:17]} 24. Ra7 {[%emt 0:00:39]} Nc6 {[%emt 0:00:36]} 25. Ra8+ {[%emt 0:00:22]} Bc8 {[%emt 0:00:03]} 26. f5 {[%emt 0:03:37]} Kc7 {[%emt 0:01:09]} 27. fxe6 {[%emt 0:01:33]} fxe6 {[%emt 0:01:40]} 28. Ke3 {[%emt 0:00:56]} Kb7 {[%emt 0:01:17]} 29. Ra1 {[%emt 0:00:20]} Ne7 {[%emt 0:01:28]} 30. h4 {[%emt 0:00:46]} g6 {[%emt 0:03:52]} 31. c3 {[%emt 0:00:28]} Rf8 {[%emt 0:02:19]} 32. Rg1 {[%emt 0:00:31]} Kc7 {[%emt 0:01:31]} 33. Bd1 {[%emt 0:00:23]} Bd7 {[%emt 0:00:41]} 34. Bc2 {[%emt 0:00:32]} Ra8 {[%emt 0:01:09]} 35. Kd2 {[%emt 0:00:41]} Rf8 {[%emt 0:00:14]} 36. Ke3 {[%emt 0:00:26]} Ra8 {[%emt 0:00:03]} 37. Kd2 {[%emt 0:00:32]} Rf8 {[%emt 0:00:07]} 38. Ke2 {[%emt 0:00:34]} Ra8 {[%emt 0:02:05]} 39. Ne1 {[%emt 0:00:21]} Rf8 {[%emt 0:02:51]} 40. Ng2 {[%emt 0:00:19]} Ra8 {[%emt 0:01:35]} 41. Rf1 {[%emt 0:30:35]} Ra2 {[%emt 0:01:02]} 42. Kd2 {[%emt 0:00:00]} Ba4 {[%emt 0:00:32]} 43. Ne3 {[%emt 0:00:00]} h5 {[%emt 0:02:49]} 44. Rf7 {[%emt 0:00:00]} Kd7 {[%emt 0:03:19]} 45. gxh5 {[%emt 0:00:00]} gxh5 {[%emt 0:00:22]} 46. Kc1 {[%emt 0:00:00]} Ke8 {[%emt 0:04:50]} 47. Rh7 {[%emt 0:00:00]} Bxc2 {[%emt 0:00:05]} 48. Nxc2 {[%emt 0:00:00]} Nf5 {[%emt 0:00:03]} 49. Rxh5 {[%emt 0:00:00]} Kf7 {[%emt 0:00:03]} 50. Rh8 {[%emt 0:00:00]} Kg7 {[%emt 0:00:09]} 51. Re8 {[%emt 0:00:00]} Kf7 {[%emt 0:00:08]} 52. Rh8 {[%emt 0:00:00]} Kg7 {[%emt 0:00:05]} 53. Rb8 {[%emt 0:00:00]} Nxh4 {[%emt 0:00:52]} 54. Kb1 {[%emt 0:00:00]} Ra4 {[%emt 0:01:15]} 55. Nb4 {[%emt 0:00:00]} Ng6 {[%emt 0:02:59]} 56. Nc6 {[%emt 0:00:00]} Nf4 {[%emt 0:00:09]} 57. Nd8 {[%emt 0:00:20]} Kg6 {[%emt 0:01:28]} 58. Rb6 {[%emt 0:03:05]} Kf5 {[%emt 0:00:15]} 59. Nb7 {[%emt 0:00:13]} Nd3 {[%emt 0:03:15]} 60. Nd8 {[%emt 0:02:31]} Nf4 {[%emt 0:00:55]} 61. Nb7 {[%emt 0:00:18]} Nd3 {[%emt 0:00:09]} 62. Nd8 {[%emt 0:00:43]} Nf4 {[%emt 0:00:05]} 63. Nb7 {[%emt 0:00:28] Kxe5} 1/2-1/2

[Event "FIDE Zonal 2.5-W 2019"]
[Site "Montevideo"]
[Date "2019.04.19"]
[Round "9.3"]
[White "Amura, Claudia"]
[Black "Gomez Barrera, Javiera Belen"]
[Result "1/2-1/2"]
[ECO "E61"]
[WhiteElo "2260"]
[BlackElo "2016"]
[Annotator "NA"]
[PlyCount "72"]
[EventDate "2019.04.13"]
[EventType "swiss"]
[EventCountry "URU"]
[SourceTitle "playchess.com"]
[Source "ChessBase"]
[SourceQuality "1"]
[TimeControl "40/5400+30:1800+30"]

1. d4 {[%emt 0:00:00]} Nf6 {[%emt 0:00:00]} 2. c4 {[%emt 0:00:00]} g6 {[%emt 0:00:00]} 3. Nc3 {[%emt 0:00:00]} Bg7 {[%emt 0:00:08]} 4. Nf3 {[%emt 0:00:17]} O-O {[%emt 0:00:14]} 5. Bg5 {[%emt 0:00:14]} d6 {[%emt 0:00:10]} 6. e3 {[%emt 0:00:04]} c5 {[%emt 0:00:57]} 7. Be2 {[%emt 0:00:44]} h6 {[%emt 0:00:49]} 8. Bh4 {[%emt 0:04:25]} g5 {[%emt 0:03:25]} 9. Bg3 {[%emt 0:00:06]} Nh5 {[%emt 0:00:30]} 10. Nd2 {[%emt 0:14:32]} Nxg3 {[%emt 0:05:18]} 11. hxg3 {[%emt 0:01:47]} cxd4 {[%emt 0:06:49]} 12. exd4 {[%emt 0:06:28]} Nc6 13. Nb3 e5 {[%emt 0:21:43]} 14. dxe5 {[%emt 0:19:39]} dxe5 {[%emt 0:01:59]} 15. O-O {[%emt 0:02:55]} Nd4 {[%emt 0:06:22]} 16. Nxd4 {[%emt 0:03:48]} exd4 {[%emt 0:01:10]} 17. Ne4 {[%emt 0:00:58]} f5 {[%emt 0:20:30]} 18. Nc5 {[%emt 0:01:20]} Qc7 {[%emt 0:00:13]} 19. Nb3 {[%emt 0:03:46]} d3 {[%emt 0:09:38]} 20. Qxd3 {[%emt 0:03:57]} Bxb2 {[%emt 0:01:43]} 21. Rad1 {[%emt 0:02:39]} Be6 {[%emt 0:06:56]} 22. Nd4 {[%emt 0:01:34]} Bxd4 {[%emt 0:01:07]} 23. Qxd4 {[%emt 0:00:08]} g4 {[%emt 0:01:20]} 24. Qe3 {[%emt 0:07:46]} Rf6 {[%emt 0:03:40]} 25. Rd4 {[%emt 0:00:12]} Bf7 {[%emt 0:02:32]} 26. Rfd1 {[%emt 0:02:06]} Re8 {[%emt 0:00:59]} 27. Qd2 {[%emt 0:00:14]} Qc5 {[%emt 0:01:40]} 28. Rd7 {[%emt 0:02:29]} Re7 {[%emt 0:01:51]} 29. Rd8+ {[%emt 0:02:23]} Kg7 {[%emt 0:00:01]} 30. Bd3 {[%emt 0:01:10]} Re8 {[%emt 0:01:49]} 31. Rd7 {[%emt 0:01:05]} Re7 {[%emt 0:00:51]} 32. Rd8 {[%emt 0:01:56]} Re8 {[%emt 0:00:01]} 33. Rd7 Re7 34. Rxe7 Qxe7 35. Qa5 b6 36. Qc3 Qc5 1/2-1/2